fUSD/lending_fUSD_20250125
["ID","MTS","AMOUNT","RATE_DAILY","PERIOD"]
[350283203,1737766255766,-251.20927744,0.0002198,2]
[350283204,1737766255775,-116920.08174331,0.0002199,14]
[350283205,1737766255784,-996.49421532,0.0002199,2]
[350283206,1737766255795,-78111.23808977,0.0002199,14]
[350283207,1737766255808,-150.60879019,0.0002199,2]
[350283208,1737766255817,-222.3084069,0.00021999,7]
[350283209,1737766255826,-100000.0,0.00021999,2]
[350283210,1737766255836,-30124.69835824,0.00021999,2]
[350283211,1737766255846,-10024.61044763,0.00022,2]
[350283212,1737766255856,-5003.25162114,0.00022,2]
[350283213,1737766255866,-10000.0,0.00022,5]
[350283214,1737766255876,-8000.0,0.00022,4]
[350283215,1737766255886,-5000.0,0.00022,2]
[350283216,1737766255896,-18358.23728808,0.00022,30]
[350283217,1737766255906,-2500.0,0.00022,2]
[350283218,1737766255915,-22143610.73306392,0.00022,2]
[350283219,1737766256055,-425.30358132,0.00022,2]
[350283220,1737766256066,-24660.56615856,0.00022,2]
[350283221,1737766256078,-1538.18962914,0.00022,2]
[350283222,1737766256090,-2206.3604818,0.00022,2]
[350283223,1737766256101,-843.0845897,0.00022,2]
[350283224,1737766256113,-1454.3225435,0.00022,2]
[350283225,1737766256124,-916.34,0.00022,2]
[350283226,1737766256135,-28178.96688687,0.00022,2]
[350283227,1737766256261,-267.2297452,0.00019869,2]
[350283228,1737766256274,-232.7702548,0.00019869,2]
[350283229,1737766256284,-500.0,0.00019869,2]
[350283230,1737766256294,-467.02829186,0.00019869,2]
[350283231,1737766256307,-32.97170814,0.00019869,2]
[350283232,1737766256317,-462.14087249,0.00020006,2]
[350283233,1737766256329,-37.85912751,0.00020006,2]
[350283234,1737766256340,-381.42159594,0.00020006,2]
[350283235,1737766256352,-118.57840406,0.00020006,2]
[350283236,1737766256362,-500.0,0.00020143,2]
[350283237,1737766256376,-500.0,0.00020143,2]
[350283238,1737766256391,-500.0,0.0002028,2]
[350283239,1737766256401,-500.0,0.0002028,2]
[350283240,1737766256410,-500.0,0.00020417,2]
[350283241,1737766256420,-500.0,0.00020417,2]
[350283242,1737766256430,-500.0,0.00020554,2]
[350283243,1737766256440,-500.0,0.00020691,2]
[350283244,1737766256450,-500.0,0.00020828,2]
[350283245,1737766256461,-1094.4,0.00021239,2]
[350283246,1737766256470,-1094.4,0.00021376,2]
[350283247,1737766256479,-1094.4,0.00021513,2]
[350283248,1737766256489,-1094.4,0.0002165,2]
[350283249,1737766256499,-1094.4,0.00021787,2]
[350283250,1737766256510,-1094.4,0.00021924,2]
[350283251,1737766256519,-5293.87771965,0.00022,2]
[350283252,1737766256540,-500.0,0.00020554,2]
[350283253,1737766256553,-317.47027288,0.00022,2]
[350283254,1737766256565,-10310.28202644,0.00022,2]
[350283255,1737766256577,-494.09731466,0.00022,2]
[350283256,1737766256590,-577.46205938,0.00022,2]
[350283257,1737766256606,-665.31684,0.00022,2]
[350283258,1737766256619,-3284.28099999,0.00022,2]
[350283259,1737766256751,-23825.02331838,0.00022,2]
[350283260,1737766256767,-2429.4141106,0.00022,2]
[350283261,1737766256786,-310.06210583,0.00020965,2]
[350283262,1737766256799,-189.93789417,0.00020965,2]
[350283263,1737766256814,-1597.9950896,0.00022,2]
[350283264,1737766256826,-680.75824123,0.00022,2]
[350283265,1737766256840,-355.3550009,0.00022,2]
[350283266,1737766256858,-469.31070039,0.00020691,2]
[350283267,1737766257003,-158.47563007,0.00019769,2]
[350283268,1737766257013,-30.68929961,0.00020691,2]
[350283269,1737766257023,-500.0,0.00020828,2]
[350283270,1737766257033,-500.0,0.00020965,2]
[350283271,1737766257043,-449.33507033,0.00021102,2]
[350283272,1737766257063,-50.66492967,0.00021102,2]
[350283273,1737766257074,-500.0,0.00021102,2]
[350283274,1737766257084,-500.0,0.00021239,2]
[350283275,1737766257094,-500.0,0.00021239,2]
[350283276,1737766257104,-500.0,0.00021376,2]
[350283277,1737766257113,-500.0,0.00021513,2]
[350283278,1737766257123,-500.0,0.0002165,2]
[350283279,1737766257133,-500.0,0.00021787,2]
[350283280,1737766257142,-500.0,0.00021924,2]
[350283281,1737766257151,-919624.20277544,0.00022,2]
[350283282,1737766257161,-530.47456737,0.00022,2]
[350283283,1737766257173,-19147.43706555,0.00022,2]
[350283284,1737766257184,-144312.45534273,0.00022,2]
[350283285,1737766257195,-506.62630079,0.00022,2]
[350283286,1737766257205,-352.72799642,0.00022,2]
[350283287,1737766257216,-485.305,0.00022,2]
[350283288,1737766257228,-2362.76890421,0.00022,2]
[350283289,1737766257243,-1358.22583912,0.00022,2]
[350283290,1737766257254,-11137.9901144,0.00022,2]
[350283291,1737766257362,-150.0,0.00019601,2]
[350283292,1737766257371,-151.0,0.00019869,2]
[350283293,1737766257380,-46.34829993,0.00019869,2]
[350283294,1737766257392,-104.65170007,0.00019869,2]
[350283295,1737766257401,-151.0,0.00019869,2]
[350283296,1737766257411,-151.0,0.00019869,2]
[350283297,1737766257421,-218.53974634,0.00019869,2]
[350283298,1737766257430,-25.57605123,0.00022,2]
[350283299,1737766257445,-1196.71886879,0.00022,2]
[350283300,1737766257456,-7260.0265,0.00022,2]
[350283301,1737766257467,-19353.22507889,0.00022,2]
[350283302,1737766257477,-1660.69483985,0.00022,2]
[350283303,1737766257488,-403566.11959959,0.00022,2]
[350283304,1737766257500,-1200.11,0.00022,2]
[350283305,1737766257511,-1000.0,0.00022,2]
[350283306,1737766257525,-350.64635233,0.00022,2]
[350283320,1737767159123,-537.47,0.00017218,2]
[350283321,1737767159148,-254.69,0.00018079,2]
[350283322,1737767159170,-250.11,0.00018079,2]
[350283323,1737767159191,-252.17,0.00018079,2]
[350283324,1737767159212,-182.74547696,0.00018079,2]
[350283325,1737767240038,157.33,0.00010137,2]
[350283327,1737767253134,-68.53452304,0.00018079,2]
[350283328,1737767253156,-250.0,0.00018079,2]
[350283329,1737767253180,-48.38694873,0.00018079,2]
[350283437,1737767425404,169.82,0.00012329,2]
[350283446,1737767431974,-201.28305127,0.00018079,2]
[350283447,1737767431983,-500.0,0.00018164,2]
[350283448,1737767431992,-192.16,0.00018938,2]
[350283449,1737767432002,-454.92,0.00018974,2]
[350283450,1737767432011,-154.04,0.00018974,2]
[350283451,1737767432023,-598.86,0.0001903,2]
[350283452,1737767432033,-5077.19413366,0.00019045,2]
[350283453,1737767437766,-9350.30586634,0.00019045,2]
[350283454,1737767437776,-250.0,0.00019062,2]
[350283455,1737767437785,-250.0,0.00019074,2]
[350283456,1737767437795,-500.0,0.00019082,2]
[350283457,1737767437805,-1500.0,0.00019092,2]
[350283458,1737767437815,-1000.0,0.0001916,2]
[350283459,1737767437824,-537.47,0.00019482,2]
[350283460,1737767437834,-254.09,0.00019576,2]
[350283461,1737767437843,-505.76,0.000196,2]
[350283462,1737767437854,-780.75,0.00019769,2]
[350283463,1737767437863,-665.9621,0.00019769,2]
[350283464,1737767437873,-2865.81,0.00019814,2]
[350283465,1737767437883,-500.0,0.00019869,2]
[350283466,1737767437892,-500.0,0.00019869,2]
[350283467,1737767437902,-301.18877973,0.00019869,2]
[350283468,1737767437912,-500.0,0.00019869,2]
[350283469,1737767437921,-500.0,0.00019869,2]
[350283470,1737767437931,-500.0,0.00019869,2]
[350283471,1737767437941,-506.28701953,0.00019869,2]
[350283472,1737767437950,-500.0,0.00019869,2]
[350283473,1737767437959,-500.0,0.00019869,2]
[350283474,1737767437968,-500.0,0.00019869,2]
[350283475,1737767437978,-500.0,0.00019869,2]
[350283476,1737767437987,-500.0,0.00019869,2]
[350283477,1737767437997,-500.0,0.00019869,2]
[350283478,1737767438006,-500.0,0.00019869,2]
[350283479,1737767438015,-500.0,0.00019869,2]
[350283480,1737767438024,-500.0,0.00019869,2]
[350283481,1737767438033,-500.0,0.00019869,2]
[350283482,1737767438043,-500.0,0.00019869,2]
[350283483,1737767438052,-500.0,0.00019869,2]
[350283484,1737767438061,-500.0,0.00019869,2]
[350283485,1737767438071,-500.0,0.00019869,2]
[350283486,1737767438081,-524.74351284,0.00019869,2]
[350283487,1737767438091,-500.0,0.00019869,2]
[350283488,1737767438100,-500.0,0.00019869,2]
[350283489,1737767438111,-500.0,0.00019869,2]
[350283490,1737767438120,-500.0,0.00019869,2]
[350283491,1737767438130,-574.4282957,0.00019869,2]
[350283492,1737767438141,-500.0,0.00019869,2]
[350283493,1737767438151,-500.0,0.00019869,2]
[350283494,1737767438164,-500.0,0.00019869,2]
[350283496,1737767438174,-500.0,0.00019869,2]
[350283498,1737767438183,-500.0,0.00019869,2]
[350283499,1737767438192,-500.0,0.00019869,2]
[350283500,1737767438202,-500.0,0.00019869,2]
[350283501,1737767438211,-500.0,0.00019869,2]
[350283502,1737767438220,-466.0829842,0.00019869,2]
[350283503,1737767438229,-500.0,0.00019869,2]
[350283504,1737767438238,-500.0,0.00019869,2]
[350283505,1737767438247,-500.0,0.00019869,2]
[350283506,1737767438256,-500.0,0.00019869,2]
[350283507,1737767438265,-500.0,0.00019869,2]
[350283508,1737767438274,-500.0,0.00019869,2]
[350283509,1737767438282,-500.0,0.00019869,2]
[350283510,1737767438291,-500.0,0.00019869,2]
[350283511,1737767438300,-161.30204374,0.00019869,2]
[350283512,1737767438309,-500.0,0.00019869,2]
[350283513,1737767438317,-500.0,0.00019869,2]
[350283515,1737767438327,-500.0,0.00019869,2]
[350283517,1737767438336,-500.0,0.00019869,2]
[350283519,1737767438346,-500.0,0.00019869,2]
[350283520,1737767438355,-501.630066,0.00019869,2]
[350283522,1737767438364,-564.89344077,0.00019869,2]
[350283524,1737767438373,-500.0,0.00019869,2]
[350283526,1737767438382,-500.0,0.00019869,2]
[350283528,1737767438394,-500.0,0.00019869,2]
[350283531,1737767438403,-500.0,0.00019869,2]
[350283532,1737767438412,-500.0,0.00019869,2]
[350283534,1737767438421,-500.0,0.00019869,2]
[350283536,1737767438431,-500.0,0.00019869,2]
[350283538,1737767438440,-500.0,0.00019869,2]
[350283540,1737767438454,-500.0,0.00019869,2]
[350283542,1737767438467,-500.0,0.00019869,2]
[350283544,1737767438481,-500.0,0.00019869,2]
[350283545,1737767438490,-500.0,0.00019869,2]
[350283547,1737767438498,-500.0,0.00019869,2]
[350283549,1737767438507,-500.0,0.00019869,2]
[350283551,1737767438516,-500.0,0.00019869,2]
[350283552,1737767438525,-500.0,0.00019869,2]
[350283553,1737767438534,-500.0,0.00019869,2]
[350283554,1737767438543,-500.0,0.00019869,2]
[350283555,1737767438552,-500.0,0.00019869,2]
[350283556,1737767438562,-500.0,0.00019869,2]
[350283557,1737767438571,-500.0,0.00019869,2]
[350283558,1737767438580,-500.0,0.00019869,2]
[350283559,1737767438590,-500.0,0.00019869,2]
[350283560,1737767438599,-500.0,0.00019869,2]
[350283561,1737767438609,-500.0,0.00019869,2]
[350283562,1737767438618,-500.0,0.00019869,2]
[350283563,1737767438628,-500.0,0.00019869,2]
[350283564,1737767438639,-500.0,0.00019869,2]
[350283565,1737767438649,-389.32092998,0.00019869,2]
[350283566,1737767438658,-500.0,0.00019869,2]
[350283567,1737767438668,-500.0,0.00019869,2]
[350283568,1737767438677,-500.0,0.00019869,2]
[350283569,1737767438686,-500.0,0.00019869,2]
[350283570,1737767438696,-518.24256455,0.00019869,2]
[350283571,1737767438705,-500.0,0.00019869,2]
[350283572,1737767438715,-500.0,0.00019869,2]
[350283573,1737767438725,-628.78,0.00019869,2]
[350283574,1737767438734,-500.0,0.00019869,2]
[350283575,1737767438743,-52762.46004431,0.00019869,2]
[350283576,1737767438753,-3470.0,0.00019874,2]
[350283577,1737767438762,-192.16,0.00019885,2]
[350283578,1737767438772,-153.77,0.00019898,30]
[350283579,1737767438781,-302.98780833,0.000199,2]
[350283580,1737767438790,-196.8367,0.00019906,2]
[350283581,1737767438801,-1438.1754,0.00019925,2]
[350283582,1737767438811,-302.98780818,0.00019969,2]
[350283583,1737767438820,-500.0,0.00020006,2]
[350283584,1737767438830,-500.0,0.00020006,2]
[350283585,1737767438840,-500.0,0.00020006,2]
[350283586,1737767438849,-500.0,0.00020006,2]
[350283587,1737767438859,-500.0,0.00020006,2]
[350283588,1737767438868,-500.0,0.00020006,2]
[350283589,1737767438878,-529.25,0.00020006,2]
[350283590,1737767438890,-500.0,0.00020006,2]
[350283591,1737767438900,-568.31,0.00020006,2]
[350283592,1737767438910,-500.0,0.00020006,2]
[350283593,1737767438919,-500.0,0.00020006,2]
[350283594,1737767438929,-500.0,0.00020006,2]
[350283595,1737767438938,-500.0,0.00020006,2]
[350283596,1737767438948,-500.0,0.00020006,2]
[350283597,1737767438957,-558.89,0.00020006,2]
[350283598,1737767438966,-500.0,0.00020006,2]
[350283599,1737767438975,-500.0,0.00020006,2]
[350283600,1737767438985,-302.98780818,0.00020038,2]
[350283601,1737767438994,-6752.55615343,0.00020043,2]
[350283602,1737767439003,-302.98780818,0.00020107,2]
[350283603,1737767439013,-236.23,0.00020143,2]
[350283604,1737767439022,-302.98780818,0.00020176,2]
[350283605,1737767439031,-302.98780818,0.00020245,2]
[350283606,1737767439040,-6752.55615341,0.00020249,2]
[350283607,1737767439050,-302.98780818,0.00020314,2]
[350283608,1737767439060,-500.0,0.00020356,2]
[350283609,1737767439069,-302.98780818,0.00020383,2]
[350283610,1737767439080,-151.0,0.00020431,2]
[350283611,1737767439091,-302.98780818,0.00020452,2]
[350283612,1737767439101,-6752.55615341,0.00020456,2]
[350283613,1737767439112,-302.98780818,0.00020521,2]
[350283614,1737767439122,-177.53,0.00020548,2]
[350283615,1737767439134,-790.161044,0.00020552,2]
[350283616,1737767439143,-156.797105,0.00020552,2]
[350283617,1737767439152,-160.561758,0.00020552,2]
[350283618,1737767439165,-686.630757,0.00020552,2]
[350283619,1737767439174,-500.0,0.00020552,2]
[350283620,1737767439183,-500.0,0.00020552,2]
[350283621,1737767439193,-500.0,0.00020552,2]
[350283622,1737767439204,-500.0,0.00020552,2]
[350283623,1737767439213,-500.0,0.00020552,2]
[350283624,1737767439222,-500.0,0.00020552,2]
[350283625,1737767439237,-500.0,0.00020552,2]
[350283626,1737767439246,-500.0,0.00020552,2]
[350283627,1737767439256,-500.0,0.00020552,2]
[350283628,1737767439265,-500.0,0.00020552,2]
[350283629,1737767439274,-500.0,0.00020552,2]
[350283630,1737767439283,-606.21,0.00020552,2]
[350283631,1737767439294,-532.23,0.00020552,2]
[350283632,1737767439303,-611.75,0.00020552,2]
[350283633,1737767439312,-500.0,0.00020552,2]
[350283634,1737767439321,-500.0,0.00020552,2]
[350283635,1737767439331,-500.0,0.00020552,2]
[350283636,1737767439340,-500.0,0.00020552,2]
[350283637,1737767439350,-500.0,0.00020552,2]
[350283638,1737767439359,-500.0,0.00020552,2]
[350283639,1737767439368,-500.0,0.00020552,2]
[350283640,1737767439379,-500.0,0.00020552,2]
[350283641,1737767439391,-500.0,0.00020552,2]
[350283642,1737767439401,-500.0,0.00020552,2]
[350283643,1737767439410,-500.0,0.00020552,2]
[350283644,1737767439419,-500.0,0.00020552,2]
[350283645,1737767439428,-500.0,0.00020552,2]
[350283646,1737767439440,-500.0,0.00020552,2]
[350283647,1737767439449,-500.0,0.00020552,2]
[350283648,1737767439458,-500.0,0.00020552,2]
[350283649,1737767439467,-501.42,0.00020552,2]
[350283650,1737767439476,-500.0,0.00020552,2]
[350283651,1737767439486,-500.0,0.00020552,2]
[350283652,1737767439496,-551.34,0.00020552,2]
[350283653,1737767439505,-540.00865424,0.00020552,2]
[350283654,1737767439514,-500.0,0.00020552,2]
[350283655,1737767439524,-500.0,0.00020552,2]
[350283656,1737767439533,-594.94,0.00020552,2]
[350283657,1737767439544,-500.0,0.00020552,2]
[350283658,1737767439553,-500.0,0.00020552,2]
[350283659,1737767439562,-500.0,0.00020552,2]
[350283660,1737767439571,-500.0,0.00020552,2]
[350283661,1737767439581,-500.0,0.00020552,2]
[350283662,1737767439590,-500.0,0.00020552,2]
[350283663,1737767439600,-500.0,0.00020552,2]
[350283664,1737767439610,-500.0,0.00020552,2]
[350283665,1737767439620,-500.0,0.00020552,2]
[350283666,1737767439630,-500.0,0.00020552,2]
[350283667,1737767439641,-500.0,0.00020552,2]
[350283668,1737767439651,-500.0,0.00020552,2]
[350283669,1737767439660,-500.0,0.00020552,2]
[350283670,1737767439669,-500.0,0.00020552,2]
[350283672,1737767439678,-500.0,0.00020552,2]
[350283673,1737767439689,-500.0,0.00020552,2]
[350283674,1737767439699,-500.0,0.00020552,2]
[350283675,1737767439708,-500.0,0.00020552,2]
[350283677,1737767439717,-500.0,0.00020552,2]
[350283679,1737767439726,-500.0,0.00020552,2]
[350283681,1737767439735,-500.0,0.00020552,2]
[350283682,1737767439746,-500.0,0.00020552,2]
[350283683,1737767439756,-500.0,0.00020552,2]
[350283684,1737767439765,-500.0,0.00020552,2]
[350283685,1737767439775,-500.0,0.00020552,2]
[350283686,1737767439785,-500.0,0.00020552,2]
[350283687,1737767439794,-500.0,0.00020553,2]
[350283688,1737767439804,-500.0,0.00020553,2]
[350283689,1737767439818,-500.0,0.00020553,2]
[350283690,1737767439831,-500.0,0.00020553,2]
[350283691,1737767439840,-500.0,0.00020553,2]
[350283692,1737767439850,-500.0,0.00020553,2]
[350283693,1737767439859,-479.56550444,0.00020553,2]
[350283694,1737767439868,-500.0,0.00020553,2]
[350283695,1737767439878,-500.0,0.00020553,2]
[350283696,1737767439890,-500.0,0.00020553,2]
[350283697,1737767439903,-500.0,0.00020553,2]
[350283698,1737767439912,-500.0,0.00020553,2]
[350283699,1737767439921,-326.65934089,0.00020553,2]
[350283700,1737767439931,-500.0,0.00020553,2]
[350283701,1737767439949,-500.0,0.00020553,2]
[350283702,1737767439963,-500.0,0.00020553,2]
[350283703,1737767439973,-500.0,0.00020553,2]
[350283704,1737767439983,-500.0,0.00020553,2]
[350283705,1737767439992,-500.0,0.00020553,2]
[350283706,1737767440001,-500.0,0.00020553,2]
[350283707,1737767440011,-500.0,0.00020553,2]
[350283708,1737767440020,-500.0,0.00020553,2]
[350283709,1737767440029,-500.0,0.00020553,2]
[350283710,1737767440039,-500.0,0.00020553,2]
[350283711,1737767440048,-500.0,0.00020553,2]
[350283712,1737767440058,-500.0,0.00020553,2]
[350283713,1737767440067,-500.0,0.00020553,2]
[350283714,1737767440077,-164.2211539,0.00020553,2]
[350283715,1737767440085,-500.0,0.00020553,2]
[350283716,1737767440095,-500.0,0.00020553,2]
[350283717,1737767440104,-500.0,0.00020553,2]
[350283718,1737767440114,-500.0,0.00020553,2]
[350283719,1737767440123,-500.0,0.00020553,2]
[350283720,1737767440135,-500.0,0.00020553,2]
[350283721,1737767440144,-500.0,0.00020553,2]
[350283722,1737767440155,-500.0,0.00020553,2]
[350283723,1737767440169,-500.0,0.00020553,2]
[350283724,1737767440179,-500.0,0.00020553,2]
[350283725,1737767440188,-500.0,0.00020553,2]
[350283726,1737767440198,-500.0,0.00020553,2]
[350283727,1737767440207,-500.0,0.00020553,2]
[350283728,1737767440216,-628.01676126,0.00020553,2]
[350283729,1737767440225,-500.0,0.00020553,2]
[350283730,1737767440236,-507.88526908,0.00020553,2]
[350283731,1737767440245,-500.0,0.00020553,2]
[350283732,1737767440254,-500.0,0.00020553,2]
[350283734,1737767440263,-210.57559817,0.00020553,2]
[350283736,1737767440273,-500.0,0.00020553,2]
[350283738,1737767440282,-500.0,0.00020553,2]
[350283739,1737767440290,-500.0,0.00020553,2]
[350283740,1737767440299,-500.0,0.00020553,2]
[350283741,1737767440308,-500.0,0.00020553,2]
[350283742,1737767440317,-500.0,0.00020553,2]
[350283743,1737767440326,-500.0,0.00020553,2]
[350283744,1737767440335,-500.0,0.00020553,2]
[350283745,1737767440344,-500.0,0.00020553,2]
[350283746,1737767440356,-500.0,0.00020553,2]
[350283747,1737767440366,-500.0,0.00020553,2]
[350283748,1737767440375,-500.0,0.00020553,2]
[350283749,1737767440384,-516.47627339,0.00020553,2]
[350283750,1737767440393,-500.33594404,0.00020553,2]
[350283751,1737767440402,-500.0,0.00020553,2]
[350283752,1737767440411,-500.0,0.00020553,2]
[350283753,1737767440420,-500.0,0.00020553,2]
[350283754,1737767440429,-500.0,0.00020553,2]
[350283755,1737767440441,-500.0,0.00020553,2]
[350283756,1737767440450,-200.0,0.00020553,2]
[350283757,1737767440459,-500.0,0.00020553,2]
[350283758,1737767440468,-500.0,0.00020553,2]
[350283759,1737767440600,-500.0,0.00020553,2]
[350283760,1737767440638,-500.0,0.00020553,2]
[350283761,1737767440648,-500.0,0.00020553,2]
[350283762,1737767440658,-500.0,0.00020553,2]
[350283763,1737767440667,-500.0,0.00020553,2]
[350283764,1737767440677,-500.0,0.00020553,2]
[350283765,1737767440686,-500.0,0.00020553,2]
[350283766,1737767440695,-500.0,0.00020553,2]
[350283767,1737767440704,-500.0,0.00020553,2]
[350283768,1737767440714,-500.0,0.00020553,2]
[350283769,1737767440723,-500.0,0.00020553,2]
[350283770,1737767440733,-500.0,0.00020553,2]
[350283771,1737767440747,-500.0,0.00020553,2]
[350283772,1737767440758,-500.0,0.00020553,2]
[350283773,1737767440769,-500.0,0.00020553,2]
[350283774,1737767440778,-500.0,0.00020553,2]
[350283775,1737767440787,-500.0,0.00020553,2]
[350283776,1737767440796,-500.0,0.00020553,2]
[350283777,1737767440806,-500.0,0.00020553,2]
[350283778,1737767440815,-500.0,0.00020553,2]
[350283779,1737767440825,-500.0,0.00020553,2]
[350283780,1737767440834,-500.0,0.00020553,2]
[350283781,1737767440843,-500.0,0.00020553,2]
[350283782,1737767440853,-500.0,0.00020553,2]
[350283783,1737767440863,-563.7237733,0.00020553,2]
[350283784,1737767440872,-500.0,0.00020553,2]
[350283785,1737767440882,-500.0,0.00020553,2]
[350283786,1737767440892,-500.0,0.00020553,2]
[350283787,1737767440902,-500.0,0.00020553,2]
[350283788,1737767440911,-500.0,0.00020553,2]
[350283789,1737767440920,-500.0,0.00020553,2]
[350283790,1737767440930,-500.0,0.00020553,2]
[350283791,1737767440940,-500.0,0.00020553,2]
[350283792,1737767440949,-500.0,0.00020553,2]
[350283793,1737767440959,-500.0,0.00020553,2]
[350283794,1737767440968,-500.0,0.00020553,2]
[350283795,1737767440977,-500.0,0.00020553,2]
[350283796,1737767440987,-500.0,0.00020553,2]
[350283797,1737767440996,-500.0,0.00020553,2]
[350283798,1737767441006,-500.0,0.00020553,2]
[350283799,1737767441015,-500.0,0.00020553,2]
[350283800,1737767441025,-500.0,0.00020553,2]
[350283801,1737767441034,-500.0,0.00020553,2]
[350283802,1737767441044,-500.0,0.00020553,2]
[350283803,1737767441054,-500.0,0.00020553,2]
[350283804,1737767441063,-500.0,0.00020553,2]
[350283805,1737767441072,-500.0,0.00020553,2]
[350283806,1737767441081,-294.37037338,0.00020553,2]
[350283807,1737767441091,-500.0,0.00020553,2]
[350283808,1737767441100,-500.0,0.00020553,2]
[350283809,1737767441110,-500.0,0.00020553,2]
[350283810,1737767441119,-500.0,0.00020553,2]
[350283811,1737767441128,-500.0,0.00020553,2]
[350283812,1737767441141,-500.0,0.00020553,2]
[350283813,1737767441151,-500.0,0.00020553,2]
[350283814,1737767441163,-500.0,0.00020553,2]
[350283815,1737767441172,-500.0,0.00020553,2]
[350283816,1737767441181,-500.0,0.00020553,2]
[350283817,1737767441191,-500.0,0.00020553,2]
[350283818,1737767441201,-500.0,0.00020553,2]
[350283819,1737767441211,-500.0,0.00020553,2]
[350283820,1737767441220,-500.0,0.00020553,2]
[350283821,1737767441229,-500.0,0.00020553,2]
[350283822,1737767441241,-500.0,0.00020553,2]
[350283823,1737767441251,-500.0,0.00020553,2]
[350283824,1737767441261,-500.0,0.00020553,2]
[350283825,1737767441270,-500.0,0.00020553,2]
[350283826,1737767441279,-500.0,0.00020553,2]
[350283827,1737767441289,-500.0,0.00020553,2]
[350283828,1737767441298,-500.0,0.00020553,2]
[350283829,1737767441307,-500.0,0.00020553,2]
[350283830,1737767441317,-500.0,0.00020553,2]
[350283831,1737767441327,-500.0,0.00020553,2]
[350283832,1737767441336,-500.0,0.00020553,2]
[350283833,1737767441346,-500.0,0.00020553,2]
[350283834,1737767441356,-500.0,0.00020553,2]
[350283835,1737767441365,-500.0,0.00020553,2]
[350283836,1737767441375,-500.0,0.00020553,2]
[350283837,1737767441387,-500.0,0.00020553,2]
[350283838,1737767441397,-500.0,0.00020553,2]
[350283839,1737767441407,-500.0,0.00020553,2]
[350283840,1737767441416,-500.0,0.00020553,2]
[350283841,1737767441426,-479.80394521,0.00020553,2]
[350283842,1737767441435,-500.86842483,0.00020553,2]
[350283843,1737767441445,-500.0,0.00020553,2]
[350283844,1737767441454,-500.0,0.00020553,2]
[350283845,1737767441464,-500.0,0.00020553,2]
[350283846,1737767441474,-500.0,0.00020553,2]
[350283847,1737767441484,-500.0,0.00020553,2]
[350283848,1737767441493,-500.0,0.00020553,2]
[350283849,1737767441503,-510.97419294,0.00020553,2]
[350283850,1737767441513,-500.0,0.00020553,2]
[350283851,1737767441522,-500.0,0.00020553,2]
[350283852,1737767441532,-500.0,0.00020553,2]
[350283853,1737767441542,-500.0,0.00020553,2]
[350283854,1737767441551,-551.4343692,0.00020553,2]
[350283855,1737767441560,-500.0,0.00020553,2]
[350283856,1737767441570,-500.0,0.00020553,2]
[350283857,1737767441580,-500.0,0.00020553,2]
[350283858,1737767441590,-500.0,0.00020553,2]